[Event "41st Amateur D7"]
[Site "ChessGUI4"]
[Date "2013.07.03"]
[Round "1.5"]
[White "FireFly 2.6.0 64-bit"]
[Black "ChessKiss 1.7 64-bit"]
[Result "1/2-1/2"]
[BlackElo "2214"]
[ECO "B90"]
[EventDate "2013.??.??"]
[TimeControl "40/1500:40/1500:40/1500"]
[WhiteElo "2258"]

{ i5 Quad } 1.e4 { [%eval 0,1] [%emt 0:00:00] } 1...c5
{ [%eval 0,1] [%emt 0:00:00] } 2.Nf3 { [%eval 0,1] [%emt 0:00:00] } 2...d6
{ [%eval 0,1] [%emt 0:00:00] } 3.d4 { [%eval 0,1] [%emt 0:00:00] } 3...cxd4
{ [%eval 0,1] [%emt 0:00:00] } 4.Nxd4 { [%eval 0,1] [%emt 0:00:00] } 4...Nf6
{ [%eval 0,1] [%emt 0:00:00] } 5.Nc3 { [%eval 0,1] [%emt 0:00:00] } 5...a6
{ [%eval 0,1] [%emt 0:00:00] } 6.Be3 { [%eval 0,1] [%emt 0:00: 00] } 6...e5
{ [%eval 0,1] [%emt 0:00:00] } 7.Nb3 { [%eval 0,1] [%emt 0:00:00] } 7...Be6
{ [%eval 0,1] [%emt 0:00:00] } 8.Qd2 { [%eval 0,1] [%emt 0:00:00] } 8...Be7
{ [%eval 0, 1] [%emt 0:00:00] } 9.Bd3 { [%eval 38,11] [%emt 0:00:57] }
9...Nc6 { [%eval 4,11] [%emt 0:00:44] (a5) } 10.O-O
{ [%eval 48,11] [%emt 0:00:56] (O-O) } 10...Ng4
{ [%eval 21,13] [%emt 0:00:42] (Rc8) } 11.Nd5
{ [%eval 42,12] [%emt 0:00:56] (Nd5) } 11...Nxe3
{ [%eval 19,13] [%emt 0:00:42] (Nxe3) } 12.Qxe3
{ [%eval 35,12] [%emt 0:00:55] (Qxe3) } 12...Bg5
{ [%eval 14,12] [%emt 0:00:39] (Bg5) } 13.Qf3
{ [%eval 32,11] [%emt 0:00:54] (Qb6) } 13...O-O
{ [%eval 32,12] [%emt 0:00:38] (O-O) } 14.Rfe1
{ [%eval 12, 11] [%emt 0:00:53] (Kh1) } 14...a5
{ [%eval 44,12] [%emt 0:00:36] (a5) } 15.a4
{ [%eval 8,11] [%emt 0:00:52] (a4) } 15...Nb4
{ [%eval 54,12] [%emt 0:00:37] (Nb4) } 16.Nxb4
{ [%eval -1,12] [%emt 0:00:51] (Kh1) } 16...axb4
{ [%eval 57,12] [%emt 0:00:34] (axb4) } 17.Qe2
{ [%eval -7,11] [%emt 0:00:42] (Kh1) } 17...Qc7
{ [%eval 62,11] [%emt 0:00:33] (Qd7) } 18.Red1
{ [%eval -3,12] [%emt 0:00:42] (Rf1) } 18...Bd7
{ [%eval 36, 11] [%emt 0:00:32] (Bd7) } 19.Qe1
{ [%eval -8,12] [%emt 0:00:41] (Qe1) } 19...Bxa4
{ [%eval 49,13] [%emt 0:00:31] (Bxa4) } 20.Qxb4
{ [%eval -14,12] [%emt 0:00:41] (Qxb4) } 20...b5
{ [%eval 11,11] [%emt 0:00:30] (Bd7) } 21.Ra2
{ [%eval 3,10] [%emt 0: 00:41] (Ra2) } 21...Be7
{ [%eval 31,11] [%emt 0:00:30] (Rfd8) } 22.Rda1
{ [%eval 12,11] [%emt 0:00:40] (Qc3) } 22...Rac8
{ [%eval 2,12] [%emt 0:00:29] (Rab8) } 23.h3
{ [%eval -14,11] [%emt 0:00:40] (Ra3) } 23...d5
{ [%eval 59,12] [%emt 0:00:28] (Rfe8) } 24.Qe1
{ [%eval -25,12] [%emt 0:00:40] (Qe1) } 24...dxe4
{ [%eval 62,12] [%emt 0:00: 27] (f5) } 25.Qxe4
{ [%eval -17,12] [%emt 0:00:39] (Bxe4) } 25...f5
{ [%eval 57,12] [%emt 0:00:27] (f5) } 26.Qd5+
{ [%eval -15,12] [%emt 0:00:39] (Qe2) } 26...Kh8
{ [%eval 77,12] [%emt 0:00:26] (Kh8) } 27.Bxb5
{ [%eval -8,12] [%emt 0:00:38] (Bxb5) } 27...Bxb5
{ [%eval 24,12] [%emt 0:00:24] (Bxb5) } 28.Qxb5
{ [%eval -22,11] [%emt 0:00:30] (Qxb5) } 28...Qxc2
{ [%eval 38,12] [%emt 0:00:18] (Qxc2) } 29.Qxe5
{ [%eval -16,11] [%emt 0:00:30] (Rc1) } 29...Bf6
{ [%eval 63,11] [%emt 0:00:23] (Bf6) } 30.Qe3
{ [%eval -31,12] [%emt 0:00:30] (Qe3) } 30...Rce8
{ [%eval 43,12] [%emt 0:00: 23] (Rce8) } 31.Qf3
{ [%eval -20,12] [%emt 0:00:30] (Qf3) } 31...Rb8
{ [%eval 35,12] [%emt 0:00:23] (Rb8) } 32.Ra8
{ [%eval -34,12] [%emt 0:00:30] (Na5) } 32...Rfd8
{ [%eval 47,11] [%emt 0:00:22] (h6) } 33.Rxb8
{ [%eval 28,13] [%emt 0:00:30] (Rxb8) } 33...Rxb8
{ [%eval -23,14] [%emt 0:00:21] (Rxb8) } 34.Ra8
{ [%eval 31,13] [%emt 0:00:30] (Ra8) } 34...Qb1+
{ [%eval -28,14] [%emt 0:00:22] (Qb1) } 35.Kh2
{ [%eval 41,13] [%emt 0:00:30] (Kh2) } 35...Be5+
{ [%eval -36,15] [%emt 0:00:20] (Be5) } 36.g3
{ [%eval 67,13] [%emt 0:00:30] (g3) } 36...Qxb2
{ [%eval -45,14] [%emt 0:00:21] (Qxb2) } 37.Nc5
{ [%eval 46,13] [%emt 0:00:30] (Kg2) } 37...Rxa8
{ [%eval -12,14] [%emt 0:00:19] } 38.Qxa8+
{ [%eval 40,13] [%emt 0:00:30] (Qxa8) } 38...Qb8
{ [%eval -14,14] [%emt 0:00:18] (Qb8) } 39.Qd5
{ [%eval 28,13] [%emt 0:00:30] (Qc6) } 39...f4
{ [%eval -2,14] [%emt 0:00:17] (f4) } 40.Nd7
{ [%eval 45,14] [%emt 0:00:30] (Nd7) } 40...fxg3+
{ [%eval -6,13] [%emt 0:00:17] (fxg3) } 41.Kg2
{ [%eval 25,13] [%emt 0:00: 36] (fxg3) } 41...Qa7
{ [%eval -8,15] [%emt 0:01:00] (Qa7) } 42.fxg3
{ [%eval 30,13] [%emt 0:00:36] (Nxe5) } 42...Bc3
{ [%eval -4,14] [%emt 0:00:58] (Bc7) } 43.Nc5
{ [%eval 32,11] [%emt 0:00:36] (Ne5) } 43...Qa5
{ [%eval 0,15] [%emt 0:00:56] (g6) } 44.Qd7
{ [%eval 31,11] [%emt 0:00:36] (Qe6) } 44...Qa8+
{ [%eval 18,14] [%emt 0:00:55] (Qa8) } 45.Kf2
{ [%eval 24,11] [%emt 0:00:36] (Qb7) } 45...g6
{ [%eval 21,12] [%emt 0: 00:53] (h6) } 46.Ke3
{ [%eval 41,11] [%emt 0:00:36] (Ne6) } 46...Qb8
{ [%eval 67,14] [%emt 0:00:51] (h6) } 47.Ne4
{ [%eval 24,12] [%emt 0:00:36] (Ne4) } 47...Bg7
{ [%eval 53,14] [%emt 0:00:50] (Be5) } 48.Qd6
{ [%eval 28,11] [%emt 0:00:36] (h4) } 48...Qb3+
{ [%eval 74,14] [%emt 0:00:48] (Qb3) } 49.Ke2
{ [%eval 10,11] [%emt 0:00:36] (Kf2) } 49...Qc4+
{ [%eval 75,14] [%emt 0:00:45] (Qb5) } 50.Qd3
{ [%eval 10,10] [%emt 0:00: 36] (Ke3) } 50...Qg8
{ [%eval 74,14] [%emt 0:00:35] (Qa2) } 51.Qa6
{ [%eval 15,11] [%emt 0:00:36] (Qd6) } 51...Qe8
{ [%eval 75,15] [%emt 0:00:37] (Be5) } 52.Qb7
{ [%eval 4,12] [%emt 0:00:36] (Kf3) } 52...h6
{ [%eval 71,15] [%emt 0:00:44] (h6) } 53.Ke3
{ [%eval 3,11] [%emt 0:00:36] (Kf2) } 53...Qe6
{ [%eval 83,16] [%emt 0:00:42] (Qe6) } 54.g4
{ [%eval 0,11] [%emt 0:00:36] (Qb8) } 54...Qg8
{ [%eval 78,14] [%emt 0:00:41] (Qc4) } 55.g5
{ [%eval 4,11] [%emt 0:00:36] (Qb6) } 55...Qe6
{ [%eval 92,13] [%emt 0: 00:40] (Qc4) } 56.Qb8+
{ [%eval 0,11] [%emt 0:00:36] (Qb8) } 56...Kh7
{ [%eval 77,16] [%emt 0:00:39] (Kh7) } 57.h4
{ [%eval 0,11] [%emt 0:00:36] (h4) } 57...Qh3+
{ [%eval 55,13] [%emt 0:00:37] (Qh3) } 58.Qg3
{ [%eval 0,11] [%emt 0:00:36] (Qg3) } 58...Qe6
{ [%eval 61,14] [%emt 0:00:36] (Qe6) } 59.Qd6
{ [%eval 0,12] [%emt 0:00:36] (Qc7) } 59...Qh3+
{ [%eval 54,13] [%emt 0:00:36] (Qh3) } 60.Qg3
{ [%eval 0,13] [%emt 0:00:36] (Qg3) } 60...Qe6
{ [%eval 60,15] [%emt 0:00:35] } 61.Qc7 { [%eval 0,12] [%emt 0:00:36] (Qd6) }
61...h5 { [%eval 60,14] [%emt 0:00:34] (Qh3) } 62.Qb8
{ [%eval 0,12] [%emt 0: 00:36] (Kf4) } 62...Qh3+
{ [%eval 64,16] [%emt 0:00:33] (Qh3) } 63.Qg3
{ [%eval 0,12] [%emt 0:00:36] (Qg3) } 63...Qf1
{ [%eval 50,15] [%emt 0:00:32] (Qe6) } 64.Nd2
{ [%eval 2,13] [%emt 0:00:36] (Qc7) } 64...Qa1
{ [%eval 82,14] [%emt 0:00:31] (Qc1) } 65.Qf4
{ [%eval 2,12] [%emt 0:00:36] (Qf4) } 65...Kh8
{ [%eval 78,15] [%emt 0:00:29] (Qg1) } 66.Qe4
{ [%eval 2,12] [%emt 0:00:36] (Qb8) } 66...Qa3+
{ [%eval 75,14] [%emt 0:00: 29] (Qe1) } 67.Ke2
{ [%eval 2,12] [%emt 0:00:36] (Ke2) } 67...Qa6+
{ [%eval 72,14] [%emt 0:00:28] (Kh7) } 68.Qc4
{ [%eval 2,11] [%emt 0:00:36] (Nc4) } 68...Qd6
{ [%eval 72,15] [%emt 0:00:27] (Qd6) } 69.Nf3
{ [%eval 2,13] [%emt 0:00:36] (Qf7) } 69...Qe7+
{ [%eval 72,15] [%emt 0:00:26] (Kh7) } 70.Kf2
{ [%eval 2,12] [%emt 0:00:36] (Kd2) } 70...Qe8
{ [%eval 70,15] [%emt 0:00:24] (Kh7) } 71.Ne1
{ [%eval 2,12] [%emt 0:00:36] (Nd2) } 71...Qb8
{ [%eval 71,14] [%emt 0:00:23] (Qd7) } 72.Ng2
{ [%eval 2,12] [%emt 0: 00:36] (Nf3) } 72...Qb6+
{ [%eval 73,13] [%emt 0:00:16] (Qf8) } 73.Ke2
{ [%eval 2,11] [%emt 0:00:36] (Ke2) } 73...Qb2+
{ [%eval 71,14] [%emt 0:00:24] (Qb2) } 74.Kf3
{ [%eval 2,12] [%emt 0:00:36] (Kf3) } 74...Qa3+
{ [%eval 66,15] [%emt 0:00:22] (Qb7) } 1/2-1/2

[Event "41st Amateur D7"]
[Site "ChessGUI4"]
[Date "2013.07.03"]
[Round "2.2"]
[White "Butcher 1.64 64-bit"]
[Black "Waxman 2011"]
[Result "1/2-1/2"]
[BlackElo "2256"]
[ECO "D38"]
[EventDate "2013.??.??"]
[TimeControl "40/1500:40/1500:40/1500"]
[WhiteElo "2355"]

{ i5 Quad } 1.d4 { [%eval 0,1] [%emt 0:00:00] } 1...Nf6
{ [%eval 0,1] [%emt 0:00:00] } 2.c4 { [%eval 0,1] [%emt 0:00:00] } 2...e6
{ [%eval 0,1] [%emt 0:00:00] } 3.Nf3 { [%eval 0,1] [%emt 0:00:00] } 3...d5
{ [%eval 0,1] [%emt 0:00:00] } 4.Nc3 { [%eval 0,1] [%emt 0:00:00] } 4...Bb4
{ [%eval 0,1] [%emt 0:00:00] } 5.cxd5 { [%eval 0,1] [%emt 0: 00:00] }
5...exd5 { [%eval 0,1] [%emt 0:00:00] } 6.Bg5 { [%eval 0,1] [%emt 0:00:00] }
6...h6 { [%eval 0,1] [%emt 0:00:00] } 7.Bxf6 { [%eval 0,1] [%emt 0:00:00] }
7...Qxf6 { [%eval 0,1] [%emt 0:00:00] } 8.Qa4+ { [%eval 0,1] [%emt 0:00:00] }
8...Nc6 { [%eval 0, 1] [%emt 0:00:00] } 9.e3
{ [%eval -79,11] [%emt 0:01:04] } 9...O-O
{ [%eval 4,12] [%emt 0:00:44] (Bg4) } 10.Bb5
{ [%eval -75,11] [%emt 0:00:59] (Bb5) } 10...Bxc3+
{ [%eval 7,12] [%emt 0:00:47] (Bg4) } 11.bxc3
{ [%eval -46,13] [%emt 0:00:51] (bxc3) } 11...Bf5
{ [%eval 3,12] [%emt 0:00:37] (Bg4) } 12.O-O
{ [%eval -23,12] [%emt 0:00:57] (Bxc6) } 12...Ne7
{ [%eval 19,12] [%emt 0:00:37] (Bd3) } 13.Qd1
{ [%eval -27, 11] [%emt 0:01:05] (Qd1) } 13...Ng6
{ [%eval 12,12] [%emt 0:00:42] (Ng6) } 14.Bd3
{ [%eval -22,12] [%emt 0:01:01] (Bd3) } 14...Bg4
{ [%eval 14,13] [%emt 0:00:53] (Bg4) } 15.Be2
{ [%eval -25,12] [%emt 0:01:03] (Rb1) } 15...c6
{ [%eval 8,12] [%emt 0:00:41] (c6) } 16.Nd2
{ [%eval -24,12] [%emt 0:01:02] (Rb1) } 16...Bxe2
{ [%eval 14,13] [%emt 0:00:33] (Bf5) } 17.Qxe2
{ [%eval -14,12] [%emt 0:01:00] (Qxe2) } 17...Rfe8
{ [%eval 8, 13] [%emt 0:00:44] (Rfe8) } 18.Qg4
{ [%eval -12,12] [%emt 0:00:56] (Qf3) } 18...Re7
{ [%eval 11,13] [%emt 0:00:34] (Rad8) } 19.c4
{ [%eval -6,12] [%emt 0:00:58] (Rfb1) } 19...Qd6
{ [%eval 6,13] [%emt 0:00:53] (Qe6) } 20.Rfc1
{ [%eval -1,12] [%emt 0:00:54] (Rfc1) } 20...dxc4
{ [%eval 2,13] [%emt 0:00:41] (Rd8) } 21.Nxc4
{ [%eval 5, 12] [%emt 0:00:48] (Nxc4) } 21...Qd5
{ [%eval -2,13] [%emt 0:01:27] (Qe6) } 22.a4
{ [%eval 6,12] [%emt 0:00:48] (Nd2) } 22...c5
{ [%eval -7,13] [%emt 0:00:40] (Rd8) } 23.dxc5
{ [%eval 13,12] [%emt 0:00:47] (dxc5) } 23...Qxc5
{ [%eval -21,12] [%emt 0:00:33] (Qxc5) } 24.Na3
{ [%eval 21,11] [%emt 0:00:47] (Rd1) } 24...Qe5
{ [%eval -24,13] [%emt 0:00:39] (Qe5) } 25.Rd1
{ [%eval 19,12] [%emt 0:00:46] (Rd1) } 25...Qf6
{ [%eval -17, 13] [%emt 0:00:55] (Qf6) } 26.Rac1
{ [%eval 17,11] [%emt 0:00:45] (Rac1) } 26...Ne5
{ [%eval -16,13] [%emt 0:01:15] (Ne5) } 27.Qe2
{ [%eval 15,11] [%emt 0:00:44] (Qg3) } 27...Nc6
{ [%eval -21,12] [%emt 0:00:37] (Re6) } 28.Nb5
{ [%eval 22,11] [%emt 0:00:37] (Nb5) } 28...Qg6
{ [%eval -26,12] [%emt 0:00:42] (Rae8) } 29.Rc5
{ [%eval 31, 11] [%emt 0:00:43] (Qc2) } 29...a6
{ [%eval -19,12] [%emt 0:00:41] (Rb8) } 30.Nc3
{ [%eval 34,12] [%emt 0:00:42] (Nc3) } 30...Re5
{ [%eval -21,13] [%emt 0:00:53] (Re5) } 31.Rxe5
{ [%eval 26,11] [%emt 0:00:41] (Rxe5) } 31...Nxe5
{ [%eval -18,12] [%emt 0:00: 19] (Nxe5) } 32.Nd5
{ [%eval 12,12] [%emt 0:00:40] (Nd5) } 32...Kh8
{ [%eval -13,12] [%emt 0:00:35] (Re8) } 33.a5
{ [%eval 23,11] [%emt 0:00:35] (h3) } 33...Nc6
{ [%eval 0, 13] [%emt 0:00:38] (Nc6) } 34.Nb6
{ [%eval 19,12] [%emt 0:00:33] (Nb6) } 34...Rd8
{ [%eval -1,14] [%emt 0:00:30] (Rd8) } 35.Rxd8+
{ [%eval 9,12] [%emt 0:00:27] (Rxd8) } 35...Nxd8
{ [%eval 0,14] [%emt 0:00:13] (Nxd8) } 36.Qd1
{ [%eval -1,13] [%emt 0:00:28] (Qd1) } 36...Nc6
{ [%eval 0,15] [%emt 0:00:50] (Nc6) } 37.Nc4
{ [%eval -4,13] [%emt 0:00:25] (h3) } 37...Qe4
{ [%eval -4,15] [%emt 0:00:31] (Qe6) } 38.Nd6
{ [%eval 34,13] [%emt 0:00:21] (Nd6) } 38...Qe7
{ [%eval -4,15] [%emt 0:00:47] (Qe7) } 39.Qd5
{ [%eval 33,11] [%emt 0:00:21] (Qd5) } 39...f6
{ [%eval -11,14] [%emt 0:00:46] (f6) } 40.Nc4
{ [%eval 20,12] [%emt 0:00:16] (Nc4) } 40...Qb4
{ [%eval -12,14] [%emt 0:00:31] (Ne5) } 41.g3
{ [%eval 15,14] [%emt 0:00:50] (g3) } 41...Qb5
{ [%eval -12,14] [%emt 0: 00:42] (Qb5) } 42.e4
{ [%eval 14,14] [%emt 0:00:41] (Qe4) } 42...Qb1+
{ [%eval -3,14] [%emt 0:00:51] (Qb1) } 43.Kg2
{ [%eval 1,14] [%emt 0:00:49] (Kg2) } 43...Qb3
{ [%eval -8,14] [%emt 0:00:35] (Qb4) } 44.h3
{ [%eval 3,13] [%emt 0:00:47] (h3) } 44...Kh7
{ [%eval -1,14] [%emt 0:00:44] (Qc3) } 45.h4
{ [%eval 10,13] [%emt 0:00:47] (Qf5) } 45...Kh8
{ [%eval 0,13] [%emt 0:00:29] (Qc3) } 46.g4
{ [%eval 10,13] [%emt 0:00:46] (h5) } 46...Qc3
{ [%eval 0,13] [%emt 0:00:26] (Nb4) } 47.g5
{ [%eval 0,13] [%emt 0:00: 53] (h5) } 47...fxg5
{ [%eval 0,14] [%emt 0:00:40] (hxg5) } 48.hxg5
{ [%eval 0,14] [%emt 0:00:52] (hxg5) } 48...hxg5
{ [%eval -35,14] [%emt 0:01:04] (hxg5) } 49.Nd6
{ [%eval 33,13] [%emt 0:00:51] (Nd6) } 49...Qxa5
{ [%eval -26,14] [%emt 0:00:41] (Nxa5) } 50.Nxb7
{ [%eval 37,14] [%emt 0:00:50] (Nxb7) } 50...Qc7
{ [%eval -26,14] [%emt 0:00: 56] (Qc7) } 51.Nc5
{ [%eval 28,14] [%emt 0:00:46] (Nd6) } 51...Qf4
{ [%eval -13,14] [%emt 0:00:28] (Qf4) } 52.Ne6
{ [%eval 10,14] [%emt 0:00:49] (Ne6) } 52...Qg4+
{ [%eval -10,14] [%emt 0:00:26] (Qg4) } 53.Kf1
{ [%eval 0,17] [%emt 0:01:25] (Kf1) } 53...Qh3+
{ [%eval 0,14] [%emt 0:00:27] (Qh3) } 54.Ke1
{ [%eval 0,15] [%emt 0:01:09] (Ke1) } 54...Qc3+
{ [%eval 0,14] [%emt 0:00:28] (Qc3) } 55.Qd2
{ [%eval 28,14] [%emt 0: 00:56] (Kf1) } 55...Qa1+
{ [%eval -6,16] [%emt 0:01:39] (Qb4) } 56.Ke2
{ [%eval 27,14] [%emt 0:00:32] (Ke2) } 56...g4
{ [%eval -3,16] [%emt 0:01:24] (a5) } 57.Qd5
{ [%eval 30,13] [%emt 0:00:36] (Qd5) } 57...Ne5
{ [%eval -10,15] [%emt 0:00:24] (Ne5) } 58.Qd8+
{ [%eval 31,14] [%emt 0:00:36] (Qd8) } 58...Kh7
{ [%eval -10,3] [%emt 0:00:00] (Kh7) } 59.Nf8+
{ [%eval 27,14] [%emt 0:00:36] (Nf8) } 59...Kg8
{ [%eval -14,15] [%emt 0:00: 22] (Kh8) } 60.Nd7+
{ [%eval 31,14] [%emt 0:00:35] (Nd7) } 60...Kh7
{ [%eval -13,15] [%emt 0:00:30] (Kh7) } 61.Qh4+
{ [%eval 38,13] [%emt 0:00:29] (Qh4) } 61...Kg6
{ [%eval -10,15] [%emt 0:00:22] (Kg8) } 62.Nxe5+
{ [%eval 54,12] [%emt 0:00:29] (Nxe5) } 62...Qxe5
{ [%eval -28,3] [%emt 0:00:00] (Qxe5) } 63.Qxg4+
{ [%eval 33,13] [%emt 0:01:00] (Qxg4) } 63...Kf6
{ [%eval -10,13] [%emt 0:00:27] (Kh6) } 64.Qf3+
{ [%eval 52,12] [%emt 0:00:32] (Qf3) } 64...Kg6
{ [%eval -9,13] [%emt 0:00:24] (Ke7) } 65.Qe3
{ [%eval 52,12] [%emt 0:00:32] (Qd3) } 65...a5
{ [%eval -8,13] [%emt 0:00:35] (a5) } 66.f4
{ [%eval 10,12] [%emt 0:00:29] (f4) } 66...Qb5+
{ [%eval -3,13] [%emt 0: 00:44] (Qb2) } 67.Kf2
{ [%eval 39,11] [%emt 0:00:24] (Kf2) } 67...a4
{ [%eval 0,14] [%emt 0:01:08] (a4) } 68.Qc1
{ [%eval 10,10] [%emt 0:00:26] (f5) } 68...Kh7
{ [%eval 0, 13] [%emt 0:00:35] (Qb6) } 69.Qh1+
{ [%eval 19,10] [%emt 0:00:24] (e5) } 69...Kg8
{ [%eval 0,14] [%emt 0:00:57] (Kg6) } 70.e5
{ [%eval 0,12] [%emt 0:00:25] (Qd1) } 70...Qb6+
{ [%eval 8,12] [%emt 0:00:37] (Qb6) } 71.Ke2
{ [%eval 0,13] [%emt 0:00:24] (Kg3) } 71...Qb2+
{ [%eval 0,12] [%emt 0:00:32] (Qb2) } 72.Ke3
{ [%eval 0,13] [%emt 0: 00:23] (Kd3) } 72...Qb3+
{ [%eval 0,13] [%emt 0:00:38] (Qb3) } 73.Kf2
{ [%eval 0,13] [%emt 0:00:20] (Ke2) } 73...Qc2+
{ [%eval 0,14] [%emt 0:00:49] (Qc2) } 74.Kg3
{ [%eval 0,13] [%emt 0:00:21] (Ke3) } 74...Qd3+
{ [%eval 0,14] [%emt 0:00:48] (Qd3) } 75.Kf2
{ [%eval 0,13] [%emt 0:00:21] (Kf2) } 75...a3
{ [%eval 0,14] [%emt 0:00:46] (Qd4) } 76.Qa8+
{ [%eval 0,13] [%emt 0:00:20] (Qa8) } 76...Kf7
{ [%eval 0,14] [%emt 0:00:08] (Kh7) } 77.Qb7+
{ [%eval 0,12] [%emt 0:00:19] (Qb7) } 77...Kg6
{ [%eval 0,16] [%emt 0: 00:35] (Kg6) } 78.Qg2+
{ [%eval 0,13] [%emt 0:00:18] (Qg2) } 78...Kh7
{ [%eval 0,16] [%emt 0:00:36] (Kh7) } 79.Qh1+
{ [%eval 0,14] [%emt 0:00:17] (Qh1) } 79...Kg6
{ [%eval -25,16] [%emt 0:01:09] (Kg6) } 80.Qg2+
{ [%eval 0,13] [%emt 0:00:17] (e6) } 80...Kh7
{ [%eval 0,18] [%emt 0:00:39] (Kh7) } 81.Qh1+ { [%eval 0,16] [%emt 0:00:50] }
81...Kg6 { [%eval 0,20] [%emt 0:01:15] (Kg6) } 82.Qg2+
{ [%eval 0,16] [%emt 0:00:49] } 1/2-1/2